[Event "Live Chess"]
[Site "Chess.com"]
[Date "2023.05.20"]
[Round "-"]
[White "CameronM1234"]
[Black "GEMdzq"]
[Result "0-1"]
[WhiteElo "1119"]
[BlackElo "2243"]
[TimeControl "300"]
[EndTime "14:43:58 PDT"]
[Termination "GEMdzq won on time"]

1. e4 {[%clk 0:04:58.7]} 1... d6 {[%clk 0:04:58.4]} 2. Nf3 {[%clk 0:04:55.6]}
2... Nf6 {[%clk 0:04:57.7]} 3. d3 {[%clk 0:04:54]} 3... g6 {[%clk 0:04:57.3]} 4.
g3 {[%clk 0:04:52.5]} 4... Bg7 {[%clk 0:04:56.8]} 5. Bg2 {[%clk 0:04:51.5]} 5...
c5 {[%clk 0:04:54.1]} 6. c3 {[%clk 0:04:45]} 6... Nc6 {[%clk 0:04:52.4]} 7. Nbd2
{[%clk 0:04:42.9]} 7... O-O {[%clk 0:04:51.2]} 8. O-O {[%clk 0:04:41.6]} 8...
Bd7 {[%clk 0:04:41.5]} 9. h3 {[%clk 0:04:40.3]} 9... Rb8 {[%clk 0:04:37.8]} 10.
a4 {[%clk 0:04:26.7]} 10... a6 {[%clk 0:04:36.4]} 11. a5 {[%clk 0:04:19.5]}
11... b5 {[%clk 0:04:35]} 12. axb6 {[%clk 0:04:13.8]} 12... Rxb6 {[%clk
0:04:33.2]} 13. Nc4 {[%clk 0:04:10.6]} 13... Rb8 {[%clk 0:04:23]} 14. e5 {[%clk
0:03:56.8]} 14... dxe5 {[%clk 0:04:19.1]} 15. Nfxe5 {[%clk 0:03:53.5]} 15...
Nxe5 {[%clk 0:04:18.2]} 16. Nxe5 {[%clk 0:03:52.2]} 16... a5 {[%clk 0:04:04.6]}
17. Bc6 {[%clk 0:03:44.6]} 17... Qc7 {[%clk 0:03:55]} 18. Nxd7 {[%clk
0:03:21.2]} 18... Nxd7 {[%clk 0:03:48.7]} 19. Bg2 {[%clk 0:03:16.8]} 19... Rfd8
{[%clk 0:03:42.2]} 20. Bf4 {[%clk 0:03:13.3]} 20... e5 {[%clk 0:03:41.3]} 21.
Bg5 {[%clk 0:03:07.6]} 21... Nf6 {[%clk 0:03:34.5]} 22. Be4 {[%clk 0:02:41.5]}
22... Rxb2 {[%clk 0:03:15.8]} 23. Qa4 {[%clk 0:01:46.4]} 23... Rdb8 {[%clk
0:02:48.8]} 24. Qxa5 {[%clk 0:01:32.4]} 24... Qxa5 {[%clk 0:02:48.7]} 25. Rxa5
{[%clk 0:01:31.6]} 25... Nxe4 {[%clk 0:02:47.3]} 26. dxe4 {[%clk 0:01:29.3]}
26... R2b5 {[%clk 0:02:37.5]} 27. Rfa1 {[%clk 0:01:20]} 27... f6 {[%clk
0:02:35.5]} 28. Be3 {[%clk 0:01:15.7]} 28... Bf8 {[%clk 0:02:34.4]} 29. Ra6
{[%clk 0:01:02.8]} 29... Kf7 {[%clk 0:02:30.6]} 30. Kf1 {[%clk 0:00:55.1]} 30...
f5 {[%clk 0:02:22.1]} 31. exf5 {[%clk 0:00:51.4]} 31... gxf5 {[%clk 0:02:22]}
32. Ra7+ {[%clk 0:00:49.8]} 32... R8b7 {[%clk 0:02:16.1]} 33. Rxb7+ {[%clk
0:00:39]} 33... Rxb7 {[%clk 0:02:16]} 34. Ra5 {[%clk 0:00:36.9]} 34... Rc7
{[%clk 0:02:10]} 35. Ke2 {[%clk 0:00:34.8]} 35... Ke6 {[%clk 0:02:09]} 36. c4
{[%clk 0:00:30]} 36... Bd6 {[%clk 0:02:07.6]} 37. Kd3 {[%clk 0:00:26]} 37... f4
{[%clk 0:02:05.4]} 38. gxf4 {[%clk 0:00:25.9]} 38... exf4 {[%clk 0:02:05.1]} 39.
Bd2 {[%clk 0:00:22.1]} 39... Rb7 {[%clk 0:02:02.6]} 40. Rb5 {[%clk 0:00:19.2]}
40... Ra7 {[%clk 0:01:57.8]} 41. Ba5 {[%clk 0:00:16.5]} 41... Kd7 {[%clk
0:01:47.9]} 42. Bb6 {[%clk 0:00:15.4]} 42... Ra3+ {[%clk 0:01:45]} 43. Ke4
{[%clk 0:00:14.7]} 43... Kc6 {[%clk 0:01:40.4]} 44. Bxc5 {[%clk 0:00:11.7]}
44... Bxc5 {[%clk 0:01:38.9]} 45. Rb8 {[%clk 0:00:09]} 45... Rxh3 {[%clk
0:01:32.1]} 46. Rf8 {[%clk 0:00:06.5]} 46... Bd6 {[%clk 0:01:30]} 47. Kf5 {[%clk
0:00:04]} 47... Rh2 {[%clk 0:01:26]} 48. Rf7 {[%clk 0:00:03.2]} 48... h5 {[%clk
0:01:24.1]} 49. Rf6 {[%clk 0:00:01.2]} 49... Rxf2 {[%clk 0:01:22.3]} 0-1

[Event "Live Chess"]
[Site "Chess.com"]
[Date "2023.05.20"]
[Round "-"]
[White "jk0110"]
[Black "ProfPoisson"]
[Result "1-0"]
[WhiteElo "1118"]
[BlackElo "1119"]
[TimeControl "300"]
[EndTime "14:44:02 PDT"]
[Termination "jk0110 won by resignation"]

1. e4 {[%clk 0:04:58.8]} 1... e5 {[%clk 0:04:56.9]} 2. Nf3 {[%clk 0:04:56.6]}
2... Nf6 {[%clk 0:04:55.5]} 3. d4 {[%clk 0:04:54.4]} 3... Nxe4 {[%clk
0:04:53.4]} 4. Nxe5 {[%clk 0:04:48.3]} 4... d5 {[%clk 0:04:51.9]} 5. Bd3 {[%clk
0:04:32.2]} 5... Nd7 {[%clk 0:04:50.1]} 6. Nxd7 {[%clk 0:04:25.7]} 6... Bxd7
{[%clk 0:04:46.9]} 7. Qf3 {[%clk 0:04:21.2]} 7... f5 {[%clk 0:04:30.5]} 8. O-O
{[%clk 0:04:02.9]} 8... Qe7 {[%clk 0:04:23.2]} 9. Re1 {[%clk 0:04:00.4]} 9...
O-O-O {[%clk 0:04:19.1]} 10. Nc3 {[%clk 0:03:50]} 10... Re8 {[%clk 0:04:09.9]}
11. Bf4 {[%clk 0:03:26.9]} 11... g5 {[%clk 0:04:06.6]} 12. Nxd5 {[%clk
0:03:11.9]} 12... Qg7 {[%clk 0:03:47.1]} 13. Be5 {[%clk 0:03:09.6]} 13... Rxe5
{[%clk 0:03:38.8]} 14. dxe5 {[%clk 0:03:03.2]} 14... g4 {[%clk 0:03:31.8]} 15.
Qf4 {[%clk 0:02:51.7]} 15... Bc5 {[%clk 0:03:29.4]} 16. Bxe4 {[%clk 0:02:42.6]}
16... fxe4 {[%clk 0:03:23.6]} 17. Rxe4 {[%clk 0:02:29.2]} 17... Rf8 {[%clk
0:03:21.1]} 18. Qg3 {[%clk 0:02:22.3]} 18... Bxf2+ {[%clk 0:03:17.8]} 19. Qxf2
{[%clk 0:02:18.7]} 19... Rxf2 {[%clk 0:03:15]} 20. Kxf2 {[%clk 0:02:18.6]} 20...
Qf7+ {[%clk 0:03:07.4]} 21. Nf4 {[%clk 0:02:17]} 21... Bc6 {[%clk 0:02:55.2]}
22. Rd4 {[%clk 0:02:08.5]} 22... Qf5 {[%clk 0:02:45.6]} 23. Rad1 {[%clk
0:02:00.4]} 23... Qxc2+ {[%clk 0:02:31.2]} 24. R1d2 {[%clk 0:01:58.8]} 24... Qc5
{[%clk 0:02:23.8]} 25. Ne6 {[%clk 0:01:48.9]} 25... Qb6 {[%clk 0:01:47.7]} 26.
Ke1 {[%clk 0:01:35.8]} 26... Bd5 {[%clk 0:01:30.5]} 27. Rxd5 {[%clk 0:01:31.1]}
27... Qg1+ {[%clk 0:01:27.8]} 28. Ke2 {[%clk 0:01:21]} 28... Qxg2+ {[%clk
0:01:26.1]} 29. Kd1 {[%clk 0:01:12.7]} 29... b6 {[%clk 0:01:09.7]} 30. Rxg2
{[%clk 0:01:08.1]} 1-0

[Event "Live Chess"]
[Site "Chess.com"]
[Date "2023.05.20"]
[Round "-"]
[White "LiamBellwood"]
[Black "FailsGambits"]
[Result "1-0"]
[WhiteElo "2069"]
[BlackElo "1320"]
[TimeControl "300"]
[EndTime "14:44:02 PDT"]
[Termination "LiamBellwood won by resignation"]

1. d4 {[%clk 0:04:59.5]} 1... d5 {[%clk 0:04:59.4]} 2. Nc3 {[%clk 0:04:59.1]}
2... Nf6 {[%clk 0:04:58.2]} 3. Bf4 {[%clk 0:04:58.8]} 3... e6 {[%clk 0:04:57.3]}
4. Nb5 {[%clk 0:04:58.4]} 4... Na6 {[%clk 0:04:46.7]} 5. a3 {[%clk 0:04:57.8]}
5... c6 {[%clk 0:04:41.6]} 6. Nc3 {[%clk 0:04:57.5]} 6... Bd6 {[%clk 0:04:36.6]}
7. e3 {[%clk 0:04:56.7]} 7... Bxf4 {[%clk 0:04:34.6]} 8. exf4 {[%clk 0:04:56.6]}
8... Qd6 {[%clk 0:04:28.1]} 9. Qd2 {[%clk 0:04:55.4]} 9... O-O {[%clk
0:04:22.5]} 10. Nf3 {[%clk 0:04:54.5]} 10... Re8 {[%clk 0:04:21.2]} 11. h4
{[%clk 0:04:53.5]} 11... h6 {[%clk 0:04:16.6]} 12. h5 {[%clk 0:04:41.8]} 12...
Rd8 {[%clk 0:04:15.1]} 13. Ne5 {[%clk 0:04:38]} 13... Ne4 {[%clk 0:04:05.9]} 14.
Nxe4 {[%clk 0:04:34.3]} 14... dxe4 {[%clk 0:04:05.8]} 15. Bxa6 {[%clk
0:04:27.6]} 15... bxa6 {[%clk 0:04:02.4]} 16. c3 {[%clk 0:04:20.9]} 16... f6
{[%clk 0:03:55.6]} 17. Nc4 {[%clk 0:04:19.6]} 17... Qd5 {[%clk 0:03:48.6]} 18.
Ne3 {[%clk 0:04:18.2]} 18... Qd7 {[%clk 0:03:39.4]} 19. Qc2 {[%clk 0:04:12.2]}
19... f5 {[%clk 0:03:37.1]} 20. Nc4 {[%clk 0:04:11]} 20... Bb7 {[%clk
0:03:25.4]} 21. Ne5 {[%clk 0:04:09.2]} 21... Qe7 {[%clk 0:03:13.2]} 22. Qa4
{[%clk 0:03:57.7]} 22... Rac8 {[%clk 0:03:03]} 23. Ng6 {[%clk 0:03:42.4]} 23...
Qd7 {[%clk 0:02:45.9]} 24. Qb4 {[%clk 0:03:32.8]} 24... Rc7 {[%clk 0:02:19.8]}
25. Ne5 {[%clk 0:03:27.3]} 25... Qe7 {[%clk 0:02:16.6]} 26. Qc4 {[%clk
0:03:17.2]} 26... c5 {[%clk 0:02:09.2]} 27. Ng6 {[%clk 0:03:14.1]} 27... Qd6
{[%clk 0:01:58.2]} 28. Rd1 {[%clk 0:03:02.9]} 28... cxd4 {[%clk 0:01:43.3]} 29.
Qxd4 {[%clk 0:03:01.9]} 29... Qxd4 {[%clk 0:01:38.7]} 30. cxd4 {[%clk
0:02:54.9]} 30... Rc2 {[%clk 0:01:32.3]} 31. O-O {[%clk 0:02:08.1]} 31... Rxb2
{[%clk 0:01:24]} 32. Rb1 {[%clk 0:02:01.1]} 32... Rxb1 {[%clk 0:01:19]} 33. Rxb1
{[%clk 0:02:01]} 33... Bc6 {[%clk 0:01:01.6]} 34. Rc1 {[%clk 0:01:57.9]} 34...
Be8 {[%clk 0:00:58.4]} 35. Rc7 {[%clk 0:01:29.7]} 35... Bxg6 {[%clk 0:00:53.7]}
36. hxg6 {[%clk 0:01:29.6]} 36... Ra8 {[%clk 0:00:47.3]} 37. Re7 {[%clk
0:01:26.9]} 37... Kf8 {[%clk 0:00:43]} 38. Rf7+ {[%clk 0:01:26.4]} 38... Ke8
{[%clk 0:00:41.4]} 39. Rxg7 {[%clk 0:01:25.9]} 1-0

[Event "Live Chess"]
[Site "Chess.com"]
[Date "2023.05.20"]
[Round "-"]
[White "Olisingapore"]
[Black "Jo1ts"]
[Result "1/2-1/2"]
[WhiteElo "1866"]
[BlackElo "744"]
[TimeControl "300"]
[EndTime "14:44:14 PDT"]
[Termination "Game drawn by repetition"]

1. d4 {[%clk 0:04:57.4]} 1... d5 {[%clk 0:04:59.1]} 2. c4 {[%clk 0:04:57]} 2...
Nf6 {[%clk 0:04:54.5]} 3. Nf3 {[%clk 0:04:56.5]} 3... Bf5 {[%clk 0:04:51.4]} 4.
e3 {[%clk 0:04:51.8]} 4... e6 {[%clk 0:04:50.3]} 5. Nc3 {[%clk 0:04:50.5]} 5...
Nbd7 {[%clk 0:04:45.3]} 6. Be2 {[%clk 0:04:50.1]} 6... b6 {[%clk 0:04:44.6]} 7.
O-O {[%clk 0:04:47.6]} 7... Bd6 {[%clk 0:04:43]} 8. Nh4 {[%clk 0:04:42.5]} 8...
Bg6 {[%clk 0:04:32.7]} 9. Nxg6 {[%clk 0:04:41]} 9... hxg6 {[%clk 0:04:31.5]} 10.
cxd5 {[%clk 0:04:33.9]} 10... Nxd5 {[%clk 0:04:29.1]} 11. Qc2 {[%clk 0:04:29.8]}
11... Bxh2+ {[%clk 0:04:23]} 12. Kh1 {[%clk 0:04:23.3]} 12... Bd6+ {[%clk
0:04:22.2]} 13. Kg1 {[%clk 0:04:22.7]} 13... Qh4 {[%clk 0:04:18.1]} 14. f4
{[%clk 0:03:29.3]} 14... Qh1+ {[%clk 0:03:57.4]} 15. Kf2 {[%clk 0:03:25.5]}
15... Qh4+ {[%clk 0:03:45.5]} 16. Kf3 {[%clk 0:03:23.7]} 16... Qh5+ {[%clk
0:03:31.5]} 17. Kf2 {[%clk 0:03:22.9]} 17... Qh4+ {[%clk 0:03:24.1]} 18. Kf3
{[%clk 0:03:20.3]} 18... Qh5+ {[%clk 0:03:20.3]} 19. Kf2 {[%clk 0:03:14.4]}
19... Qh4+ {[%clk 0:03:19]} 1/2-1/2

[Event "Live Chess"]
[Site "Chess.com"]
[Date "2023.05.20"]
[Round "-"]
[White "Singapourfeuj"]
[Black "JoshMcK"]
[Result "1-0"]
[WhiteElo "2250"]
[BlackElo "1552"]
[TimeControl "300"]
[EndTime "14:44:39 PDT"]
[Termination "Singapourfeuj won by resignation"]

1. d4 {[%clk 0:04:57.3]} 1... d5 {[%clk 0:04:57.4]} 2. c4 {[%clk 0:04:56.2]}
2... e6 {[%clk 0:04:56.2]} 3. Nf3 {[%clk 0:04:55.3]} 3... Nf6 {[%clk 0:04:54.5]}
4. Nc3 {[%clk 0:04:54.4]} 4... a6 {[%clk 0:04:50.6]} 5. cxd5 {[%clk 0:04:53.6]}
5... exd5 {[%clk 0:04:48.8]} 6. Bg5 {[%clk 0:04:50.1]} 6... Be6 {[%clk
0:04:44.6]} 7. e3 {[%clk 0:04:48.7]} 7... Be7 {[%clk 0:04:37.2]} 8. Bd3 {[%clk
0:04:46.8]} 8... O-O {[%clk 0:04:36.1]} 9. Qc2 {[%clk 0:04:45.8]} 9... Ne4
{[%clk 0:04:24.9]} 10. Bxe7 {[%clk 0:04:42.7]} 10... Qxe7 {[%clk 0:04:21.9]} 11.
Bxe4 {[%clk 0:04:41.2]} 11... dxe4 {[%clk 0:04:21.8]} 12. Qxe4 {[%clk
0:04:40.1]} 12... Nc6 {[%clk 0:04:20.4]} 13. d5 {[%clk 0:04:35.7]} 13... Rfe8
{[%clk 0:04:15.1]} 14. dxe6 {[%clk 0:04:34.7]} 14... Qxe6 {[%clk 0:04:14.2]} 15.
Qxe6 {[%clk 0:04:33.7]} 15... Rxe6 {[%clk 0:04:14.1]} 16. O-O {[%clk 0:04:30.5]}
16... Rae8 {[%clk 0:04:12.1]} 17. Rfd1 {[%clk 0:04:26.8]} 17... h6 {[%clk
0:04:05.5]} 18. h3 {[%clk 0:04:23.5]} 18... Ne5 {[%clk 0:04:02]} 19. Nxe5 {[%clk
0:04:22.2]} 19... Rxe5 {[%clk 0:04:01.9]} 20. Rd4 {[%clk 0:04:21]} 20... c6
{[%clk 0:04:00.3]} 21. Rad1 {[%clk 0:04:12]} 21... R5e7 {[%clk 0:03:56.9]} 22.
Rd7 {[%clk 0:04:07.8]} 22... Kh7 {[%clk 0:03:49.5]} 23. Rxe7 {[%clk 0:04:02.9]}
23... Rxe7 {[%clk 0:03:49.4]} 24. g3 {[%clk 0:04:02]} 24... b5 {[%clk
0:03:46.3]} 25. Kg2 {[%clk 0:04:00]} 25... c5 {[%clk 0:03:43.7]} 26. Rd6 {[%clk
0:03:57.9]} 26... a5 {[%clk 0:03:41.6]} 27. Rd5 {[%clk 0:03:56.7]} 27... b4
{[%clk 0:03:40.5]} 28. Ne2 {[%clk 0:03:55.4]} 28... c4 {[%clk 0:03:39.7]} 29.
Rxa5 {[%clk 0:03:53]} 29... Rc7 {[%clk 0:03:37.6]} 30. Rb5 {[%clk 0:03:48.8]}
30... c3 {[%clk 0:03:36.8]} 31. bxc3 {[%clk 0:03:47.9]} 31... bxc3 {[%clk
0:03:35.8]} 32. Nc1 {[%clk 0:03:46.9]} 32... c2 {[%clk 0:03:35.1]} 33. Rb2
{[%clk 0:03:45.7]} 33... Kg6 {[%clk 0:03:34.4]} 34. Kf3 {[%clk 0:03:44.8]} 34...
Kf5 {[%clk 0:03:33.8]} 35. Ke2 {[%clk 0:03:44]} 35... Ke4 {[%clk 0:03:33.4]} 36.
f3+ {[%clk 0:03:43.1]} 36... Kd5 {[%clk 0:03:32.8]} 37. Kd2 {[%clk 0:03:41.9]}
37... f5 {[%clk 0:03:32.1]} 38. Rxc2 {[%clk 0:03:40.9]} 38... Rxc2+ {[%clk
0:03:28.3]} 39. Kxc2 {[%clk 0:03:40]} 39... g5 {[%clk 0:03:28.2]} 40. Kd3 {[%clk
0:03:39]} 1-0

[Event "Live Chess"]
[Site "Chess.com"]
[Date "2023.05.20"]
[Round "-"]
[White "AttackingSnowLeopard"]
[Black "Ferrarifan27"]
[Result "1-0"]
[WhiteElo "2124"]
[BlackElo "2052"]
[TimeControl "300"]
[EndTime "14:44:49 PDT"]
[Termination "AttackingSnowLeopard won by resignation"]

1. d4 {[%clk 0:04:58]} 1... Nf6 {[%clk 0:04:57.5]} 2. c4 {[%clk 0:04:57.2]} 2...
e6 {[%clk 0:04:56.3]} 3. Nf3 {[%clk 0:04:55.7]} 3... Be7 {[%clk 0:04:54.6]} 4.
g3 {[%clk 0:04:54.5]} 4... O-O {[%clk 0:04:53.6]} 5. Bg2 {[%clk 0:04:54.1]} 5...
d5 {[%clk 0:04:52.7]} 6. O-O {[%clk 0:04:53.2]} 6... c6 {[%clk 0:04:51.3]} 7.
Nbd2 {[%clk 0:04:47.3]} 7... b6 {[%clk 0:04:48.6]} 8. Qc2 {[%clk 0:04:46.4]}
8... Bb7 {[%clk 0:04:46.1]} 9. b3 {[%clk 0:04:45.4]} 9... Nbd7 {[%clk
0:04:44.2]} 10. e4 {[%clk 0:04:45]} 10... dxe4 {[%clk 0:04:42.4]} 11. Nxe4
{[%clk 0:04:44.6]} 11... c5 {[%clk 0:04:33.9]} 12. Nxf6+ {[%clk 0:04:38.4]}
12... Nxf6 {[%clk 0:04:32.8]} 13. dxc5 {[%clk 0:04:35.1]} 13... Bxc5 {[%clk
0:04:30.4]} 14. Bb2 {[%clk 0:04:34.7]} 14... Qe7 {[%clk 0:04:25.7]} 15. Ne5
{[%clk 0:04:31.7]} 15... Bxg2 {[%clk 0:04:23.2]} 16. Kxg2 {[%clk 0:04:31.6]}
16... Rad8 {[%clk 0:04:17.6]} 17. Rad1 {[%clk 0:04:30]} 17... Rxd1 {[%clk
0:04:13.7]} 18. Rxd1 {[%clk 0:04:27]} 18... Qb7+ {[%clk 0:04:02.2]} 19. f3
{[%clk 0:04:25.6]} 19... h6 {[%clk 0:03:45.1]} 20. Nd3 {[%clk 0:04:16.9]} 20...
Be7 {[%clk 0:03:40.7]} 21. Ne5 {[%clk 0:04:13.9]} 21... Rd8 {[%clk 0:03:34.7]}
22. Rxd8+ {[%clk 0:04:11.4]} 22... Bxd8 {[%clk 0:03:34.6]} 23. Qd3 {[%clk
0:04:09.8]} 23... Be7 {[%clk 0:03:30.2]} 24. g4 {[%clk 0:04:07]} 24... Qc7
{[%clk 0:03:18.1]} 25. h4 {[%clk 0:04:03.7]} 25... Qd8 {[%clk 0:03:13.7]} 26.
Qxd8+ {[%clk 0:04:01.4]} 26... Bxd8 {[%clk 0:03:13.6]} 27. Nc6 {[%clk
0:04:00.7]} 27... Bc7 {[%clk 0:03:11.1]} 28. Bxf6 {[%clk 0:03:58]} 28... gxf6
{[%clk 0:03:09.5]} 29. Nxa7 {[%clk 0:03:57.7]} 29... Kf8 {[%clk 0:03:05.9]} 30.
Nb5 {[%clk 0:03:54.6]} 30... Bf4 {[%clk 0:03:04.4]} 31. Kf2 {[%clk 0:03:50]}
31... Ke7 {[%clk 0:03:03.5]} 32. Ke2 {[%clk 0:03:49.2]} 32... Kd7 {[%clk
0:03:02.8]} 33. Kd3 {[%clk 0:03:48.1]} 33... Kc6 {[%clk 0:03:01.4]} 34. Ke4
{[%clk 0:03:47.6]} 34... Bg3 {[%clk 0:02:58.3]} 35. b4 {[%clk 0:03:45.8]} 35...
Bxh4 {[%clk 0:02:55.7]} 36. Nd4+ {[%clk 0:03:42.3]} 36... Kc7 {[%clk 0:02:51.5]}
37. a4 {[%clk 0:03:35.8]} 37... Be1 {[%clk 0:02:50.1]} 38. Nc2 {[%clk
0:03:32.7]} 38... Bc3 {[%clk 0:02:48.2]} 39. Kd3 {[%clk 0:03:31.2]} 39... Be5
{[%clk 0:02:47]} 40. c5 {[%clk 0:03:30.2]} 40... bxc5 {[%clk 0:02:44.9]} 41.
bxc5 {[%clk 0:03:28.9]} 41... Kc6 {[%clk 0:02:44]} 42. Kc4 {[%clk 0:03:27.7]}
42... f5 {[%clk 0:02:39.4]} 43. Nb4+ {[%clk 0:03:26.6]} 43... Kb7 {[%clk
0:02:37.3]} 44. a5 {[%clk 0:03:25.5]} 44... fxg4 {[%clk 0:02:32.8]} 45. fxg4
{[%clk 0:03:23.2]} 45... Bc7 {[%clk 0:02:29.4]} 46. Kb5 {[%clk 0:03:18.7]} 46...
f5 {[%clk 0:02:25.8]} 47. c6+ {[%clk 0:03:10.6]} 47... Ka7 {[%clk 0:02:24.5]}
48. gxf5 {[%clk 0:02:57.7]} 48... exf5 {[%clk 0:02:23.7]} 49. Nd5 {[%clk
0:02:55.3]} 49... f4 {[%clk 0:02:17]} 50. Nxc7 {[%clk 0:02:29.2]} 50... f3
{[%clk 0:02:16.1]} 51. Nd5 {[%clk 0:02:00.6]} 51... f2 {[%clk 0:02:15.4]} 52.
Ne3 {[%clk 0:01:59.8]} 52... h5 {[%clk 0:02:14.7]} 53. Nf1 {[%clk 0:01:54.7]}
53... h4 {[%clk 0:02:13.3]} 54. Kc5 {[%clk 0:01:53.8]} 54... h3 {[%clk
0:02:11.3]} 55. Kd6 {[%clk 0:01:52.3]} 55... Ka6 {[%clk 0:02:08.6]} 56. c7
{[%clk 0:01:51.3]} 1-0

[Event "Live Chess"]
[Site "Chess.com"]
[Date "2023.05.20"]
[Round "-"]
[White "KGreenGator"]
[Black "Biranidun"]
[Result "0-1"]
[WhiteElo "1774"]
[BlackElo "2764"]
[TimeControl "300"]
[EndTime "14:44:55 PDT"]
[Termination "Biranidun won by resignation"]

1. c3 {[%clk 0:04:58.4]} 1... Nf6 {[%clk 0:04:58]} 2. d4 {[%clk 0:04:57.3]} 2...
g6 {[%clk 0:04:57.9]} 3. Bf4 {[%clk 0:04:54.6]} 3... Bg7 {[%clk 0:04:57.2]} 4.
Nd2 {[%clk 0:04:52.3]} 4... O-O {[%clk 0:04:56.4]} 5. e4 {[%clk 0:04:50.8]} 5...
d6 {[%clk 0:04:55.9]} 6. Ngf3 {[%clk 0:04:48.7]} 6... c5 {[%clk 0:04:55.4]} 7.
Be3 {[%clk 0:04:46.7]} 7... cxd4 {[%clk 0:04:53.2]} 8. Bxd4 {[%clk 0:04:45.4]}
8... Nc6 {[%clk 0:04:52.3]} 9. Be3 {[%clk 0:04:44.3]} 9... Ng4 {[%clk
0:04:50.7]} 10. Qe2 {[%clk 0:04:41.7]} 10... Nxe3 {[%clk 0:04:49.4]} 11. Qxe3
{[%clk 0:04:40.9]} 11... Be6 {[%clk 0:04:48.7]} 12. h3 {[%clk 0:04:37.5]} 12...
h6 {[%clk 0:04:41.8]} 13. Nd4 {[%clk 0:04:35.1]} 13... Nxd4 {[%clk 0:04:40.5]}
14. cxd4 {[%clk 0:04:34.1]} 14... Qb6 {[%clk 0:04:40.4]} 15. Nb3 {[%clk
0:04:28.4]} 15... Bxb3 {[%clk 0:04:39]} 16. axb3 {[%clk 0:04:26.9]} 16... Bxd4
{[%clk 0:04:37.8]} 17. Qxh6 {[%clk 0:04:20.8]} 17... Bxf2+ {[%clk 0:04:36.9]}
18. Ke2 {[%clk 0:04:19]} 18... Bd4 {[%clk 0:04:34.7]} 19. Qd2 {[%clk 0:04:14.1]}
19... Bf6 {[%clk 0:04:30.7]} 20. Ra3 {[%clk 0:04:09.9]} 20... Rfc8 {[%clk
0:04:29.2]} 21. g4 {[%clk 0:04:03.6]} 21... Rc5 {[%clk 0:04:28]} 22. h4 {[%clk
0:03:59.6]} 22... Qc6 {[%clk 0:04:26]} 23. Bg2 {[%clk 0:03:55.8]} 23... Rc2
{[%clk 0:04:24.6]} 24. Rd1 {[%clk 0:03:49.2]} 24... Rxd2+ {[%clk 0:04:23.5]} 25.
Rxd2 {[%clk 0:03:48.6]} 25... Bxh4 {[%clk 0:04:22.3]} 0-1

[Event "Live Chess"]
[Site "Chess.com"]
[Date "2023.05.20"]
[Round "-"]
[White "Duke_of_Bebington"]
[Black "Richardallis"]
[Result "1/2-1/2"]
[WhiteElo "1579"]
[BlackElo "1899"]
[TimeControl "300"]
[EndTime "14:45:53 PDT"]
[Termination "Game drawn by repetition"]

1. e4 {[%clk 0:04:57.8]} 1... d5 {[%clk 0:04:57.7]} 2. exd5 {[%clk 0:04:54.8]}
2... Nf6 {[%clk 0:04:55.7]} 3. d4 {[%clk 0:04:53.3]} 3... Nxd5 {[%clk
0:04:54.6]} 4. Nf3 {[%clk 0:04:50.7]} 4... Bg4 {[%clk 0:04:52.7]} 5. Be2 {[%clk
0:04:49.5]} 5... c6 {[%clk 0:04:51.6]} 6. O-O {[%clk 0:04:47]} 6... e6 {[%clk
0:04:50.5]} 7. c4 {[%clk 0:04:39.7]} 7... Nf6 {[%clk 0:04:49.3]} 8. Nc3 {[%clk
0:04:37.8]} 8... Bd6 {[%clk 0:04:47.1]} 9. Be3 {[%clk 0:04:35.3]} 9... Nbd7
{[%clk 0:04:45.1]} 10. h3 {[%clk 0:04:33.6]} 10... Bxf3 {[%clk 0:04:43.5]} 11.
Bxf3 {[%clk 0:04:32.2]} 11... Rc8 {[%clk 0:04:43.1]} 12. Qb3 {[%clk 0:04:26.1]}
12... Qb6 {[%clk 0:04:40.8]} 13. Qxb6 {[%clk 0:04:18.1]} 13... axb6 {[%clk
0:04:37.8]} 14. Rfe1 {[%clk 0:04:13]} 14... O-O {[%clk 0:04:35.4]} 15. Rad1
{[%clk 0:03:52.4]} 15... Rfe8 {[%clk 0:04:32.3]} 16. a3 {[%clk 0:03:32.2]} 16...
Ra8 {[%clk 0:04:18.6]} 17. Bc1 {[%clk 0:03:23.2]} 17... e5 {[%clk 0:04:10.7]}
18. d5 {[%clk 0:03:09]} 18... c5 {[%clk 0:04:08.7]} 19. Ne4 {[%clk 0:03:05.2]}
19... Nxe4 {[%clk 0:04:06.7]} 20. Bxe4 {[%clk 0:03:05.1]} 20... g6 {[%clk
0:04:05.3]} 21. g4 {[%clk 0:03:01]} 21... Nf6 {[%clk 0:04:03.3]} 22. Bb1 {[%clk
0:02:57.7]} 22... Kg7 {[%clk 0:04:01.5]} 23. Kg2 {[%clk 0:02:55.5]} 23... Re7
{[%clk 0:03:54]} 24. f3 {[%clk 0:02:54]} 24... Nd7 {[%clk 0:03:51.1]} 25. Re2
{[%clk 0:02:43.9]} 25... f6 {[%clk 0:03:49.3]} 26. Rde1 {[%clk 0:02:42.5]} 26...
h6 {[%clk 0:03:47.3]} 27. f4 {[%clk 0:02:37.5]} 27... Rae8 {[%clk 0:03:45.4]}
28. fxe5 {[%clk 0:02:36.1]} 28... Rxe5 {[%clk 0:03:43.1]} 29. Rxe5 {[%clk
0:02:32]} 29... Rxe5 {[%clk 0:03:42.4]} 30. Rxe5 {[%clk 0:02:30.2]} 30... Nxe5
{[%clk 0:03:42]} 31. b3 {[%clk 0:02:24]} 31... g5 {[%clk 0:03:32.4]} 32. Bf5
{[%clk 0:02:19]} 32... Kf7 {[%clk 0:03:31.1]} 33. Bc8 {[%clk 0:02:08]} 33... Nd3
{[%clk 0:03:29.6]} 34. Bd2 {[%clk 0:01:56.2]} 34... Nf4+ {[%clk 0:03:24.9]} 35.
Bxf4 {[%clk 0:01:53.9]} 35... Bxf4 {[%clk 0:03:24.1]} 36. Bxb7 {[%clk
0:01:52.8]} 36... Bc1 {[%clk 0:03:22.6]} 37. a4 {[%clk 0:01:51.1]} 37... Ke7
{[%clk 0:03:21.1]} 38. Kf3 {[%clk 0:01:47.1]} 38... Bf4 {[%clk 0:03:17.2]} 39.
Ke4 {[%clk 0:01:45.6]} 39... Bd6 {[%clk 0:03:11.7]} 40. Kf5 {[%clk 0:01:44.3]}
40... Kf7 {[%clk 0:03:11.2]} 41. Bc8 {[%clk 0:01:41.1]} 41... Bg3 {[%clk
0:03:08.5]} 42. Be6+ {[%clk 0:01:39.4]} 42... Ke7 {[%clk 0:03:07.7]} 43. Kg6
{[%clk 0:01:38.2]} 43... Bf2 {[%clk 0:03:05.9]} 44. Kxh6 {[%clk 0:01:36.8]}
44... Bg3 {[%clk 0:03:05.1]} 45. Kg6 {[%clk 0:01:35.8]} 45... Be5 {[%clk
0:03:03]} 46. Kh5 {[%clk 0:01:31.7]} 46... Bg3 {[%clk 0:03:01.9]} 47. Bf5 {[%clk
0:01:26.7]} 47... Bf2 {[%clk 0:02:59.2]} 48. Kg6 {[%clk 0:01:24.8]} 48... Bg3
{[%clk 0:02:57.9]} 49. Bc8 {[%clk 0:01:16]} 49... Be5 {[%clk 0:02:55.5]} 50. Kf5
{[%clk 0:01:14.8]} 50... Bd6 {[%clk 0:02:54]} 51. Ke4 {[%clk 0:01:13.4]} 51...
Bg3 {[%clk 0:02:52.8]} 52. Kd3 {[%clk 0:01:11.7]} 52... Bd6 {[%clk 0:02:50.9]}
53. Kc3 {[%clk 0:01:10.3]} 53... Be5+ {[%clk 0:02:50]} 54. Kc2 {[%clk
0:01:08.8]} 54... Bg3 {[%clk 0:02:48.3]} 55. Bf5 {[%clk 0:01:07.4]} 55... Kd6
{[%clk 0:02:47]} 56. Kd3 {[%clk 0:01:06.5]} 56... Ke5 {[%clk 0:02:46.4]} 57. Ke2
{[%clk 0:01:01.9]} 57... Bf4 {[%clk 0:02:45]} 58. Kf3 {[%clk 0:00:59]} 58... Bd2
{[%clk 0:02:44.4]} 59. Ke2 {[%clk 0:00:57.5]} 59... Ba5 {[%clk 0:02:42.8]} 60.
Kf3 {[%clk 0:00:56.4]} 60... Bb4 {[%clk 0:02:41.7]} 61. Kg3 {[%clk 0:00:55.7]}
61... Ba5 {[%clk 0:02:40.3]} 62. Kf3 {[%clk 0:00:52.8]} 62... Bb4 {[%clk
0:02:39.3]} 63. Ke3 {[%clk 0:00:52]} 63... Be1 {[%clk 0:02:37.2]} 64. Ke2 {[%clk
0:00:50.6]} 64... Ba5 {[%clk 0:02:36.5]} 65. Kf3 {[%clk 0:00:49.7]} 1/2-1/2